[Event "*** Titled Tuesday Blitz"]
[Site "Chess.com"]
[Date "2020.04.14"]
[Round "6"]
[White "marianokar"]
[Black "AlRayyan2022"]
[Result "1-0"]
[WhiteElo "2379"]
[BlackElo "2591"]
[TimeControl "180+1"]
[EndTime "11:03:11 PDT"]
[Termination "marianokar won by resignation"]

1. d4 {[%clk 0:03:00.9]} 1... Nf6 {[%clk 0:02:58.6]} 2. Nf3 {[%clk 0:03:00.9]}
2... c5 {[%clk 0:02:57.1]} 3. c4 {[%clk 0:02:59.7]} 3... cxd4 {[%clk 0:02:56.2]}
4. Nxd4 {[%clk 0:03:00.6]} 4... e5 {[%clk 0:02:56.3]} 5. Nb5 {[%clk 0:03:01.1]}
5... d5 {[%clk 0:02:56.3]} 6. cxd5 {[%clk 0:03:01.5]} 6... a6 {[%clk 0:02:49.3]}
7. N5c3 {[%clk 0:03:01.6]} 7... Bc5 {[%clk 0:02:49.5]} 8. g3 {[%clk 0:02:59.6]}
8... O-O {[%clk 0:02:41.9]} 9. Bg2 {[%clk 0:03:00]} 9... Bf5 {[%clk 0:02:41.8]}
10. O-O {[%clk 0:02:55.8]} 10... e4 {[%clk 0:02:38.6]} 11. Bg5 {[%clk
0:02:49.7]} 11... Re8 {[%clk 0:02:38.3]} 12. Nd2 {[%clk 0:02:43.2]} 12... Bd4
{[%clk 0:02:00.7]} 13. Ndxe4 {[%clk 0:02:31.3]} 13... Bxe4 {[%clk 0:01:55.2]}
14. Qxd4 {[%clk 0:02:26.5]} 14... Bxg2 {[%clk 0:01:54.7]} 15. Bxf6 {[%clk
0:02:20.8]} 15... gxf6 {[%clk 0:01:53.3]} 16. Kxg2 {[%clk 0:02:19.8]} 16... Nd7
{[%clk 0:01:50.1]} 17. e4 {[%clk 0:02:14.1]} 17... Rc8 {[%clk 0:01:47.6]} 18.
Rac1 {[%clk 0:02:11]} 18... Ne5 {[%clk 0:01:47]} 19. f4 {[%clk 0:01:58.2]} 19...
Rc4 {[%clk 0:01:45]} 20. Qd1 {[%clk 0:01:43.7]} 20... Nd7 {[%clk 0:01:38.7]} 21.
b3 {[%clk 0:01:31.1]} 21... Rc8 {[%clk 0:01:36.1]} 22. Qd4 {[%clk 0:01:25.5]}
22... Qa5 {[%clk 0:01:32.9]} 23. Rf2 {[%clk 0:00:53.3]} 23... Qa3 {[%clk
0:01:25.3]} 24. Rfc2 {[%clk 0:00:52.2]} 24... b5 {[%clk 0:01:17.2]} 25. Ne2
{[%clk 0:00:48.5]} 25... Rcd8 {[%clk 0:01:03.3]} 26. g4 {[%clk 0:00:40]} 26...
Nf8 {[%clk 0:00:57.7]} 27. Ng3 {[%clk 0:00:34.8]} 27... Ng6 {[%clk 0:00:35.4]}
28. Nh5 {[%clk 0:00:34.1]} 28... Rd6 {[%clk 0:00:21.8]} 29. Nxf6+ {[%clk
0:00:31.7]} 29... Rxf6 {[%clk 0:00:16]} 30. Qxf6 {[%clk 0:00:32.6]} 30... h6
{[%clk 0:00:14.3]} 31. Rc8 {[%clk 0:00:30.4]} 31... Qxa2+ {[%clk 0:00:14.4]} 32.
R1c2 {[%clk 0:00:30.6]} 1-0

[Event "*** Titled Tuesday Blitz"]
[Site "Chess.com"]
[Date "2020.04.14"]
[Round "6"]
[White "Malev212"]
[Black "tandaleo"]
[Result "1-0"]
[WhiteElo "2533"]
[BlackElo "2338"]
[TimeControl "180+1"]
[EndTime "11:03:12 PDT"]
[Termination "Malev212 won on time"]

1. c4 {[%clk 0:03:00.9]} 1... e6 {[%clk 0:02:57.8]} 2. g3 {[%clk 0:03:00.2]}
2... d5 {[%clk 0:02:56.6]} 3. Nf3 {[%clk 0:03:00]} 3... Nf6 {[%clk 0:02:55.5]}
4. Bg2 {[%clk 0:02:59.9]} 4... dxc4 {[%clk 0:02:55.9]} 5. Qc2 {[%clk 0:02:58.9]}
5... b5 {[%clk 0:02:39.6]} 6. a4 {[%clk 0:02:44.2]} 6... c6 {[%clk 0:02:39.1]}
7. axb5 {[%clk 0:02:29.6]} 7... cxb5 {[%clk 0:02:38.6]} 8. Nd4 {[%clk
0:02:28.8]} 8... Qxd4 {[%clk 0:02:07.9]} 9. Bxa8 {[%clk 0:02:26.2]} 9... Nd5
{[%clk 0:02:03.7]} 10. Nc3 {[%clk 0:02:20.7]} 10... Nb4 {[%clk 0:01:52.4]} 11.
Qd1 {[%clk 0:02:12.3]} 11... Bc5 {[%clk 0:01:50]} 12. O-O {[%clk 0:02:11.7]}
12... O-O {[%clk 0:01:45.2]} 13. Nxb5 {[%clk 0:02:06.4]} 13... Qf6 {[%clk
0:01:44.3]} 14. Nxa7 {[%clk 0:01:52.4]} 14... e5 {[%clk 0:01:35.4]} 15. Nxc8
{[%clk 0:01:49.9]} 15... Rxc8 {[%clk 0:01:34.9]} 16. Bg2 {[%clk 0:01:48.5]}
16... Nd7 {[%clk 0:01:25.1]} 17. b3 {[%clk 0:01:44.7]} 17... Nb6 {[%clk
0:01:17]} 18. Bb2 {[%clk 0:01:41.5]} 18... Rd8 {[%clk 0:01:03.1]} 19. Qc1 {[%clk
0:01:32.9]} 19... Qg5 {[%clk 0:00:58]} 20. bxc4 {[%clk 0:01:24.9]} 20... Qxd2
{[%clk 0:00:42.3]} 21. Qxd2 {[%clk 0:00:57.6]} 21... Rxd2 {[%clk 0:00:43.2]} 22.
Bc3 {[%clk 0:00:56.6]} 22... Rxe2 {[%clk 0:00:33.3]} 23. Bxb4 {[%clk 0:00:54.6]}
23... Bxb4 {[%clk 0:00:33.5]} 24. Rfb1 {[%clk 0:00:51.3]} 24... Bc5 {[%clk
0:00:10]} 25. Rxb6 {[%clk 0:00:49.5]} 25... g6 {[%clk 0:00:10.4]} 26. Rb8+
{[%clk 0:00:44]} 26... Kg7 {[%clk 0:00:10.7]} 27. Rf1 {[%clk 0:00:43.6]} 27...
h5 {[%clk 0:00:08.5]} 28. Bd5 {[%clk 0:00:42.6]} 28... Bd4 {[%clk 0:00:07.6]}
29. Rb7 {[%clk 0:00:41]} 29... Kh6 {[%clk 0:00:07.5]} 30. Rxf7 {[%clk
0:00:40.1]} 30... h4 {[%clk 0:00:08.1]} 31. Kg2 {[%clk 0:00:38.9]} 31... g5
{[%clk 0:00:07.8]} 32. g4 {[%clk 0:00:36.8]} 32... Rb2 {[%clk 0:00:03.1]} 33.
Ra1 {[%clk 0:00:34.7]} 1-0

[Event "*** Titled Tuesday Blitz"]
[Site "Chess.com"]
[Date "2020.04.14"]
[Round "6"]
[White "MartinMatthiesen"]
[Black "Lysiak_Poltorak"]
[Result "1-0"]
[WhiteElo "2426"]
[BlackElo "2245"]
[TimeControl "180+1"]
[EndTime "11:03:12 PDT"]
[Termination "MartinMatthiesen won by resignation"]

1. d4 {[%clk 0:03:00.9]} 1... Nf6 {[%clk 0:02:59.8]} 2. c4 {[%clk 0:02:58.8]}
2... e6 {[%clk 0:02:59.8]} 3. Nf3 {[%clk 0:02:58.1]} 3... Bb4+ {[%clk
0:02:59.7]} 4. Bd2 {[%clk 0:02:57.5]} 4... Qe7 {[%clk 0:02:59.3]} 5. g3 {[%clk
0:02:56.5]} 5... Bxd2+ {[%clk 0:02:58.7]} 6. Qxd2 {[%clk 0:02:49.2]} 6... d5
{[%clk 0:02:57.6]} 7. Bg2 {[%clk 0:02:47.6]} 7... Nc6 {[%clk 0:02:46.2]} 8. O-O
{[%clk 0:02:37]} 8... Qb4 {[%clk 0:02:40]} 9. Rc1 {[%clk 0:02:29.5]} 9... Qxd2
{[%clk 0:02:25.6]} 10. Nbxd2 {[%clk 0:02:28.7]} 10... O-O {[%clk 0:02:24.1]} 11.
e3 {[%clk 0:02:26.5]} 11... Bd7 {[%clk 0:02:05.6]} 12. Nb3 {[%clk 0:02:12.8]}
12... dxc4 {[%clk 0:01:21.5]} 13. Nc5 {[%clk 0:02:06.9]} 13... Rab8 {[%clk
0:01:15.9]} 14. Nd2 {[%clk 0:01:59.3]} 14... Na5 {[%clk 0:01:08.2]} 15. Nxc4
{[%clk 0:01:50]} 15... Nxc4 {[%clk 0:01:07]} 16. Rxc4 {[%clk 0:01:50.8]} 16...
Bc8 {[%clk 0:01:04.4]} 17. Rac1 {[%clk 0:01:45.6]} 17... c6 {[%clk 0:00:58.3]}
18. b4 {[%clk 0:01:43.3]} 18... Bd7 {[%clk 0:00:50.5]} 19. a4 {[%clk 0:01:40.3]}
19... Rfd8 {[%clk 0:00:34.4]} 20. a5 {[%clk 0:01:36.8]} 20... Be8 {[%clk
0:00:31.5]} 21. a6 {[%clk 0:01:33.7]} 21... b5 {[%clk 0:00:31.7]} 22. R4c2
{[%clk 0:01:30.8]} 22... Nd5 {[%clk 0:00:32.1]} 23. Rb2 {[%clk 0:01:27.9]} 23...
Rb6 {[%clk 0:00:24.2]} 24. h4 {[%clk 0:01:08.2]} 24... Kf8 {[%clk 0:00:19.5]}
25. e4 {[%clk 0:01:03.6]} 25... Nc7 {[%clk 0:00:18.9]} 26. Ra2 {[%clk
0:01:02.3]} 26... Ke7 {[%clk 0:00:17.9]} 27. Rd1 {[%clk 0:01:01.5]} 27... f6
{[%clk 0:00:16.2]} 28. Rad2 {[%clk 0:00:58.8]} 28... Nxa6 {[%clk 0:00:14.8]} 29.
Ra2 {[%clk 0:00:55.7]} 29... Nb8 {[%clk 0:00:06.2]} 30. Rxa7+ {[%clk 0:00:54.7]}
30... Nd7 {[%clk 0:00:05.6]} 31. Bh3 {[%clk 0:00:46.1]} 31... Kf8 {[%clk
0:00:03.1]} 32. Nxe6+ {[%clk 0:00:45.5]} 32... Ke7 {[%clk 0:00:02.3]} 33. Nxd8
{[%clk 0:00:45.3]} 33... Kxd8 {[%clk 0:00:03.2]} 34. d5 {[%clk 0:00:45.1]} 34...
cxd5 {[%clk 0:00:03.3]} 35. Rxd5 {[%clk 0:00:44.7]} 1-0

[Event "*** Titled Tuesday Blitz"]
[Site "Chess.com"]
[Date "2020.04.14"]
[Round "6"]
[White "mishanick"]
[Black "Aygehovit1992"]
[Result "0-1"]
[WhiteElo "2985"]
[BlackElo "2737"]
[TimeControl "180+1"]
[EndTime "11:03:13 PDT"]
[Termination "Aygehovit1992 won by resignation"]

1. d4 {[%clk 0:03:00.9]} 1... g6 {[%clk 0:02:59.1]} 2. c4 {[%clk 0:02:58.2]}
2... Bg7 {[%clk 0:02:59.4]} 3. Nc3 {[%clk 0:02:58.8]} 3... d6 {[%clk 0:02:59.9]}
4. e4 {[%clk 0:02:53.6]} 4... Nc6 {[%clk 0:03:00]} 5. Be3 {[%clk 0:02:52.9]}
5... e5 {[%clk 0:02:59.1]} 6. d5 {[%clk 0:02:53.4]} 6... Nd4 {[%clk 0:02:59.4]}
7. Nge2 {[%clk 0:02:53.8]} 7... Nxe2 {[%clk 0:02:57.9]} 8. Bxe2 {[%clk
0:02:54.7]} 8... f5 {[%clk 0:02:57.2]} 9. f3 {[%clk 0:02:48.7]} 9... Bh6 {[%clk
0:02:56.1]} 10. Bf2 {[%clk 0:02:48.7]} 10... Nf6 {[%clk 0:02:49.7]} 11. c5
{[%clk 0:02:48.6]} 11... O-O {[%clk 0:02:49.1]} 12. O-O {[%clk 0:02:48.4]} 12...
Nh5 {[%clk 0:02:48.3]} 13. exf5 {[%clk 0:02:35]} 13... gxf5 {[%clk 0:02:47.4]}
14. g3 {[%clk 0:02:35]} 14... Qg5 {[%clk 0:02:42.9]} 15. Kh1 {[%clk 0:02:30.8]}
15... Qg6 {[%clk 0:02:28.2]} 16. Nb5 {[%clk 0:02:18.4]} 16... Rf7 {[%clk
0:02:28]} 17. f4 {[%clk 0:02:14.2]} 17... Ng7 {[%clk 0:02:23.7]} 18. cxd6 {[%clk
0:02:10.9]} 18... cxd6 {[%clk 0:02:24.6]} 19. fxe5 {[%clk 0:02:11.1]} 19... dxe5
{[%clk 0:02:25.5]} 20. d6 {[%clk 0:02:11.5]} 20... Bd7 {[%clk 0:02:17.9]} 21.
Rc1 {[%clk 0:01:55.4]} 21... Bxc1 {[%clk 0:02:11.4]} 22. Qxc1 {[%clk 0:01:56.3]}
22... Rc8 {[%clk 0:02:06.2]} 23. Qd1 {[%clk 0:01:49.6]} 23... Qe6 {[%clk
0:01:55.9]} 24. Nxa7 {[%clk 0:01:47.4]} 24... Rd8 {[%clk 0:01:23.4]} 25. Kg1
{[%clk 0:01:10.9]} 25... f4 {[%clk 0:01:23.4]} 26. Bf3 {[%clk 0:00:51.1]} 26...
e4 {[%clk 0:01:17.7]} 27. Re1 {[%clk 0:00:42]} 27... e3 {[%clk 0:01:15.4]} 28.
Bxe3 {[%clk 0:00:42.5]} 28... fxe3 {[%clk 0:01:15]} 29. Bd5 {[%clk 0:00:43.2]}
29... Qg4 {[%clk 0:00:59.9]} 30. Bxf7+ {[%clk 0:00:36.3]} 30... Kxf7 {[%clk
0:01:00.8]} 31. Qd5+ {[%clk 0:00:34.3]} 31... Be6 {[%clk 0:00:57.3]} 32. Qxb7+
{[%clk 0:00:31.5]} 32... Rd7 {[%clk 0:00:57.1]} 33. Qb6 {[%clk 0:00:31.4]} 33...
Nf5 {[%clk 0:00:55.2]} 34. Nc6 {[%clk 0:00:31.2]} 34... Qe4 {[%clk 0:00:50.5]}
35. Nd8+ {[%clk 0:00:30.4]} 35... Rxd8 {[%clk 0:00:47.1]} 36. Qxd8 {[%clk
0:00:10.3]} 36... Bd5 {[%clk 0:00:47.1]} 37. Qc7+ {[%clk 0:00:06.3]} 37... Kg6
{[%clk 0:00:45.4]} 0-1

[Event "*** Titled Tuesday Blitz"]
[Site "Chess.com"]
[Date "2020.04.14"]
[Round "6"]
[White "desni93"]
[Black "ridnani2021"]
[Result "0-1"]
[WhiteElo "2214"]
[BlackElo "1771"]
[TimeControl "180+1"]
[EndTime "11:03:13 PDT"]
[Termination "ridnani2021 won by checkmate"]

1. g3 {[%clk 0:03:00.9]} 1... g6 {[%clk 0:02:58.8]} 2. Bg2 {[%clk 0:03:00.5]}
2... Bg7 {[%clk 0:02:59.7]} 3. e4 {[%clk 0:03:00.5]} 3... Nf6 {[%clk 0:03:00.3]}
4. d4 {[%clk 0:03:00.8]} 4... d6 {[%clk 0:02:59.5]} 5. Nc3 {[%clk 0:03:00.9]}
5... O-O {[%clk 0:02:59.6]} 6. Nge2 {[%clk 0:02:59.7]} 6... Nbd7 {[%clk
0:02:59.7]} 7. O-O {[%clk 0:02:58.1]} 7... c5 {[%clk 0:02:58.9]} 8. d5 {[%clk
0:02:57.3]} 8... a6 {[%clk 0:02:56.4]} 9. a4 {[%clk 0:02:56.9]} 9... Rb8 {[%clk
0:02:56.2]} 10. a5 {[%clk 0:02:46.7]} 10... b6 {[%clk 0:02:53.9]} 11. axb6
{[%clk 0:02:46.7]} 11... Nxb6 {[%clk 0:02:50.6]} 12. h3 {[%clk 0:02:47.6]} 12...
Nc4 {[%clk 0:02:45.1]} 13. Ra2 {[%clk 0:02:46.7]} 13... Nd7 {[%clk 0:02:42.2]}
14. g4 {[%clk 0:02:44.9]} 14... Qb6 {[%clk 0:02:40.3]} 15. Ng3 {[%clk
0:02:42.7]} 15... Na5 {[%clk 0:02:21]} 16. h4 {[%clk 0:02:29.5]} 16... Ne5
{[%clk 0:02:12.7]} 17. Bh3 {[%clk 0:02:06.9]} 17... h5 {[%clk 0:02:09.4]} 18. f3
{[%clk 0:02:04.8]} 18... hxg4 {[%clk 0:02:05.9]} 19. Bxg4 {[%clk 0:02:01.4]}
19... Bxg4 {[%clk 0:02:02.7]} 20. fxg4 {[%clk 0:02:01.4]} 20... Nac4 {[%clk
0:02:02.1]} 21. Kg2 {[%clk 0:01:59.9]} 21... e6 {[%clk 0:01:48.7]} 22. h5 {[%clk
0:01:59]} 22... Qd8 {[%clk 0:01:42.1]} 23. Rxa6 {[%clk 0:01:51]} 23... Qh4
{[%clk 0:01:39.4]} 24. Rh1 {[%clk 0:01:49.5]} 24... Qxg4 {[%clk 0:01:39]} 25.
Qxg4 {[%clk 0:01:48.3]} 25... Nxg4 {[%clk 0:01:39.3]} 26. hxg6 {[%clk
0:01:45.6]} 26... fxg6 {[%clk 0:01:39.4]} 27. dxe6 {[%clk 0:01:45.7]} 27... Rf2+
{[%clk 0:01:37.6]} 28. Kg1 {[%clk 0:01:39.8]} 28... Bd4 {[%clk 0:01:34.3]} 29.
Rh4 {[%clk 0:01:26.5]} 29... Rh2+ {[%clk 0:01:28.9]} 30. Kf1 {[%clk 0:01:22.1]}
30... Rxh4 {[%clk 0:01:24]} 31. Nd5 {[%clk 0:01:19.5]} 31... Nge3+ {[%clk
0:01:21.4]} 32. Bxe3 {[%clk 0:01:16.8]} 32... Nxe3+ {[%clk 0:01:21.2]} 33. Ke2
{[%clk 0:01:11.5]} 33... Nxd5 {[%clk 0:01:20.5]} 34. exd5 {[%clk 0:01:11.4]}
34... Rh5 {[%clk 0:01:15.9]} 35. c4 {[%clk 0:01:09.8]} 35... Re5+ {[%clk
0:01:14]} 36. Kf3 {[%clk 0:01:08.5]} 36... Rb3+ {[%clk 0:01:12.6]} 37. Kg4
{[%clk 0:01:06.7]} 37... Ree3 {[%clk 0:01:09.1]} 38. Nf1 {[%clk 0:00:57.7]}
38... Re4+ {[%clk 0:01:04.5]} 39. Kg5 {[%clk 0:00:55.7]} 39... Rxb2 {[%clk
0:00:58.9]} 40. Kxg6 {[%clk 0:00:48.3]} 40... Rg2+ {[%clk 0:00:58.3]} 41. Kf5
{[%clk 0:00:48.1]} 41... Re5+ {[%clk 0:00:56.5]} 42. Kf4 {[%clk 0:00:46.5]}
42... Rf2+ {[%clk 0:00:55.4]} 43. Kg4 {[%clk 0:00:46]} 43... Rxf1 {[%clk
0:00:54.2]} 44. Rxd6 {[%clk 0:00:44.7]} 44... Re2 {[%clk 0:00:47.8]} 45. Kg3
{[%clk 0:00:40.2]} 45... Be5+ {[%clk 0:00:45.4]} 46. Kg4 {[%clk 0:00:37.1]}
46... Bxd6 {[%clk 0:00:41.9]} 47. e7 {[%clk 0:00:36.9]} 47... Bxe7 {[%clk
0:00:40.8]} 48. d6 {[%clk 0:00:36.3]} 48... Bxd6 {[%clk 0:00:40.8]} 49. Kg5
{[%clk 0:00:37.2]} 49... Rg2+ {[%clk 0:00:40.4]} 50. Kh6 {[%clk 0:00:37.5]}
50... Rh1# {[%clk 0:00:41.3]} 0-1

[Event "*** Titled Tuesday Blitz"]
[Site "Chess.com"]
[Date "2020.04.14"]
[Round "6"]
[White "Gareth-Bale11"]
[Black "11kevin"]
[Result "0-1"]
[WhiteElo "2787"]
[BlackElo "2566"]
[TimeControl "180+1"]
[EndTime "11:03:14 PDT"]
[Termination "11kevin won on time"]

1. e4 {[%clk 0:03:00.9]} 1... e5 {[%clk 0:02:57.5]} 2. Nf3 {[%clk 0:03:00.4]}
2... Nc6 {[%clk 0:02:57.4]} 3. Bb5 {[%clk 0:02:59.6]} 3... a6 {[%clk 0:02:56.9]}
4. Ba4 {[%clk 0:02:58]} 4... Nf6 {[%clk 0:02:56.4]} 5. O-O {[%clk 0:02:57.3]}
5... Be7 {[%clk 0:02:56.2]} 6. d3 {[%clk 0:02:57]} 6... b5 {[%clk 0:02:55.4]} 7.
Bb3 {[%clk 0:02:55.8]} 7... O-O {[%clk 0:02:56.3]} 8. a4 {[%clk 0:02:54.8]} 8...
Bb7 {[%clk 0:02:53.1]} 9. Nc3 {[%clk 0:02:51.1]} 9... b4 {[%clk 0:02:51.7]} 10.
Nd5 {[%clk 0:02:50.1]} 10... Na5 {[%clk 0:02:49.4]} 11. Ba2 {[%clk 0:02:35.9]}
11... Nxd5 {[%clk 0:02:43.3]} 12. Bxd5 {[%clk 0:02:27.4]} 12... c6 {[%clk
0:02:38.7]} 13. Ba2 {[%clk 0:02:20.6]} 13... Qc7 {[%clk 0:02:35.5]} 14. h4
{[%clk 0:02:14.5]} 14... d5 {[%clk 0:02:32.8]} 15. Qe2 {[%clk 0:02:10.2]} 15...
Bf6 {[%clk 0:02:12.6]} 16. g4 {[%clk 0:02:07.9]} 16... g6 {[%clk 0:02:05.5]} 17.
h5 {[%clk 0:02:05.4]} 17... Qd7 {[%clk 0:02:00.4]} 18. Nh2 {[%clk 0:01:57.5]}
18... gxh5 {[%clk 0:01:53.3]} 19. g5 {[%clk 0:01:55.7]} 19... Bg7 {[%clk
0:01:51.2]} 20. Qxh5 {[%clk 0:01:54.9]} 20... Bc8 {[%clk 0:01:50.6]} 21. Be3
{[%clk 0:01:44.9]} 21... Rb8 {[%clk 0:01:47.1]} 22. Bd2 {[%clk 0:01:02.4]} 22...
dxe4 {[%clk 0:01:43.6]} 23. Rad1 {[%clk 0:01:00.5]} 23... exd3 {[%clk
0:01:41.7]} 24. cxd3 {[%clk 0:01:00.3]} 24... Qh3 {[%clk 0:01:36.1]} 25. Qxh3
{[%clk 0:00:53.9]} 25... Bxh3 {[%clk 0:01:37]} 26. Nf3 {[%clk 0:00:48.7]} 26...
Bxf1 {[%clk 0:01:36.5]} 27. Kxf1 {[%clk 0:00:46.5]} 27... Rfd8 {[%clk
0:01:37.4]} 28. Ke2 {[%clk 0:00:44.5]} 28... e4 {[%clk 0:01:37.3]} 29. dxe4
{[%clk 0:00:43.4]} 29... Bxb2 {[%clk 0:01:37.7]} 30. Rh1 {[%clk 0:00:43.3]}
30... b3 {[%clk 0:01:34.7]} 31. Bb1 {[%clk 0:00:38.9]} 31... Nc4 {[%clk
0:01:34.6]} 32. Bf4 {[%clk 0:00:34.3]} 32... Rb7 {[%clk 0:01:34.7]} 33. e5
{[%clk 0:00:28.1]} 33... Re7 {[%clk 0:01:31.6]} 34. Bxh7+ {[%clk 0:00:25.7]}
34... Kg7 {[%clk 0:01:31.5]} 35. Nh4 {[%clk 0:00:21.8]} 35... Re6 {[%clk
0:01:25.4]} 36. Nf5+ {[%clk 0:00:21.4]} 36... Kf8 {[%clk 0:01:25.7]} 37. Kf3
{[%clk 0:00:09.7]} 37... Nxe5+ {[%clk 0:01:24.3]} 38. Kg3 {[%clk 0:00:07.5]}
38... Ng6 {[%clk 0:01:23.5]} 39. Be3 {[%clk 0:00:07.9]} 39... Rd5 {[%clk
0:01:20.9]} 40. Nh6 {[%clk 0:00:05.7]} 40... Bg7 {[%clk 0:01:15]} 41. Rb1 {[%clk
0:00:05]} 41... b2 {[%clk 0:01:13.6]} 42. Kf3 {[%clk 0:00:03]} 42... c5 {[%clk
0:01:09.7]} 43. Ng4 {[%clk 0:00:02.4]} 43... c4 {[%clk 0:01:07.4]} 0-1

[Event "*** Titled Tuesday Blitz"]
[Site "Chess.com"]
[Date "2020.04.14"]
[Round "6"]
[White "BlackWidow515"]
[Black "DIM90"]
[Result "0-1"]
[WhiteElo "1968"]
[BlackElo "2247"]
[TimeControl "180+1"]
[EndTime "11:03:16 PDT"]
[Termination "DIM90 won by resignation"]

1. e4 {[%clk 0:03:00.7]} 1... e5 {[%clk 0:03:00.1]} 2. Nf3 {[%clk 0:03:00.7]}
2... Nf6 {[%clk 0:03:00.2]} 3. Nxe5 {[%clk 0:03:00]} 3... d6 {[%clk 0:03:00.4]}
4. Nf3 {[%clk 0:02:59.9]} 4... Nxe4 {[%clk 0:03:00.5]} 5. d4 {[%clk 0:03:00.4]}
5... d5 {[%clk 0:03:00.6]} 6. Bd3 {[%clk 0:03:00.5]} 6... Bd6 {[%clk 0:03:01]}
7. O-O {[%clk 0:03:00.3]} 7... O-O {[%clk 0:03:01.6]} 8. Re1 {[%clk 0:02:54.5]}
8... Bg4 {[%clk 0:03:00.8]} 9. Nbd2 {[%clk 0:02:51.5]} 9... f5 {[%clk
0:02:59.7]} 10. Nf1 {[%clk 0:02:49.2]} 10... c6 {[%clk 0:02:51.4]} 11. Ng3
{[%clk 0:02:40.5]} 11... Nd7 {[%clk 0:02:49.3]} 12. c4 {[%clk 0:02:39.5]} 12...
Kh8 {[%clk 0:02:37.8]} 13. c5 {[%clk 0:02:39.3]} 13... Bc7 {[%clk 0:02:37]} 14.
b4 {[%clk 0:02:32.9]} 14... Qf6 {[%clk 0:02:35.4]} 15. Bb2 {[%clk 0:02:17.3]}
15... Rae8 {[%clk 0:02:34.8]} 16. Be2 {[%clk 0:02:14.5]} 16... Qh6 {[%clk
0:02:19.8]} 17. Qb3 {[%clk 0:02:00.3]} 17... f4 {[%clk 0:02:12.1]} 18. Nf1
{[%clk 0:01:59.9]} 18... Ndf6 {[%clk 0:02:02.2]} 19. b5 {[%clk 0:01:50]} 19...
Bxf3 {[%clk 0:01:59]} 20. Bxf3 {[%clk 0:01:47.6]} 20... Qh4 {[%clk 0:01:56.9]}
21. Re2 {[%clk 0:01:34.7]} 21... Ng4 {[%clk 0:01:40.4]} 22. Bxg4 {[%clk
0:01:28.8]} 22... Qxg4 {[%clk 0:01:39.2]} 23. f3 {[%clk 0:01:28.8]} 23... Qh5
{[%clk 0:01:39]} 24. Rae1 {[%clk 0:01:26.7]} 24... Nf6 {[%clk 0:01:06]} 25. bxc6
{[%clk 0:01:24.6]} 25... bxc6 {[%clk 0:01:05.4]} 26. Qb7 {[%clk 0:01:23.5]}
26... Ba5 {[%clk 0:00:58.6]} 27. Rxe8 {[%clk 0:01:17.3]} 27... Rxe8 {[%clk
0:00:58.7]} 28. Rxe8+ {[%clk 0:01:16.4]} 28... Qxe8 {[%clk 0:00:58.4]} 29. Qxa7
{[%clk 0:01:14.5]} 29... Bd2 {[%clk 0:00:53.3]} 30. Qa4 {[%clk 0:01:01.9]} 30...
Qe1 {[%clk 0:00:45.7]} 31. Qa6 {[%clk 0:00:46.1]} 31... Be3+ {[%clk 0:00:43.6]}
32. Kh1 {[%clk 0:00:45.8]} 32... Qf2 {[%clk 0:00:42.6]} 33. Nxe3 {[%clk
0:00:45.8]} 33... fxe3 {[%clk 0:00:42.5]} 34. Bc3 {[%clk 0:00:41.6]} 34... e2
{[%clk 0:00:40.3]} 35. h3 {[%clk 0:00:41.8]} 35... Qf1+ {[%clk 0:00:31.5]} 36.
Kh2 {[%clk 0:00:41.7]} 36... e1=Q {[%clk 0:00:31.4]} 37. Qa8+ {[%clk 0:00:37.3]}
37... Qe8 {[%clk 0:00:29.4]} 38. Qxc6 {[%clk 0:00:37.6]} 38... Qxc6 {[%clk
0:00:28.6]} 0-1

[Event "*** Titled Tuesday Blitz"]
[Site "Chess.com"]
[Date "2020.04.14"]
[Round "6"]
[White "Semen_Khanin"]
[Black "Chigorinetz"]
[Result "1-0"]
[WhiteElo "2607"]
[BlackElo "2449"]
[TimeControl "180+1"]
[EndTime "11:03:17 PDT"]
[Termination "Semen_Khanin won by resignation"]

1. d4 {[%clk 0:03:00.9]} 1... d5 {[%clk 0:02:59.3]} 2. c4 {[%clk 0:03:00.6]}
2... Nc6 {[%clk 0:02:58.8]} 3. e3 {[%clk 0:02:58.8]} 3... dxc4 {[%clk
0:02:57.1]} 4. Bxc4 {[%clk 0:02:58.2]} 4... e5 {[%clk 0:02:57.5]} 5. Ne2 {[%clk
0:02:56.1]} 5... exd4 {[%clk 0:02:50.1]} 6. exd4 {[%clk 0:02:56]} 6... Bd6
{[%clk 0:02:49.3]} 7. Nbc3 {[%clk 0:02:55.2]} 7... Nf6 {[%clk 0:02:47.4]} 8. O-O
{[%clk 0:02:55.2]} 8... O-O {[%clk 0:02:47]} 9. h3 {[%clk 0:02:55.4]} 9... h6
{[%clk 0:02:46]} 10. a3 {[%clk 0:02:51.4]} 10... a6 {[%clk 0:02:41.6]} 11. Be3
{[%clk 0:02:50.9]} 11... Bf5 {[%clk 0:02:39.2]} 12. Qd2 {[%clk 0:02:47.5]} 12...
Na5 {[%clk 0:02:31.4]} 13. Ba2 {[%clk 0:02:46.1]} 13... Be6 {[%clk 0:02:24.7]}
14. d5 {[%clk 0:02:34.7]} 14... Bxh3 {[%clk 0:02:12.7]} 15. gxh3 {[%clk
0:02:30.4]} 15... b5 {[%clk 0:02:07.1]} 16. b4 {[%clk 0:02:24.6]} 16... Nc4
{[%clk 0:02:05.2]} 17. Bxc4 {[%clk 0:02:24.2]} 17... bxc4 {[%clk 0:02:06.1]} 18.
Qd4 {[%clk 0:02:23.8]} 18... Re8 {[%clk 0:02:04.5]} 19. Qxc4 {[%clk 0:02:16.2]}
19... Qd7 {[%clk 0:02:04.3]} 20. Kg2 {[%clk 0:02:16]} 20... Re5 {[%clk 0:01:58]}
21. Ng3 {[%clk 0:02:10.3]} 21... Rae8 {[%clk 0:01:54.3]} 22. Bf4 {[%clk
0:02:00]} 22... R5e7 {[%clk 0:01:27.8]} 23. Bxd6 {[%clk 0:01:59.4]} 23... cxd6
{[%clk 0:01:27.8]} 24. Qc6 {[%clk 0:01:57]} 24... Qd8 {[%clk 0:01:27.3]} 25.
Qxa6 {[%clk 0:01:54.4]} 25... h5 {[%clk 0:01:26.3]} 26. Qd3 {[%clk 0:01:47.2]}
26... Re5 {[%clk 0:01:23.4]} 27. a4 {[%clk 0:01:13.7]} 27... h4 {[%clk
0:01:22.5]} 28. Nge2 {[%clk 0:01:13.8]} 28... Nh7 {[%clk 0:01:17.3]} 29. a5
{[%clk 0:00:59.2]} 29... Qg5+ {[%clk 0:01:16.9]} 30. Kh2 {[%clk 0:00:58.9]}
30... Qf6 {[%clk 0:01:17.2]} 31. a6 {[%clk 0:00:49.4]} 31... Ng5 {[%clk
0:01:16.5]} 32. Kg2 {[%clk 0:00:40.1]} 32... Rf5 {[%clk 0:01:04.4]} 33. f4
{[%clk 0:00:36.3]} 33... Qg6 {[%clk 0:00:56]} 34. Kh2 {[%clk 0:00:33.7]} 34...
Nxh3 {[%clk 0:00:43.3]} 35. Qxh3 {[%clk 0:00:30.6]} 35... Rf6 {[%clk 0:00:40.3]}
36. a7 {[%clk 0:00:29.3]} 36... Ra8 {[%clk 0:00:39.8]} 37. b5 {[%clk 0:00:25.6]}
37... Qc2 {[%clk 0:00:38.6]} 38. b6 {[%clk 0:00:24.2]} 38... Rg6 {[%clk
0:00:31.3]} 39. b7 {[%clk 0:00:21.6]} 1-0